[Event "*** Titled Tuesday Blitz"]
[Site "Chess.com"]
[Date "2020.11.24"]
[Round "1"]
[White "Revnov"]
[Black "saraswathii"]
[Result "0-1"]
[WhiteElo "2656"]
[BlackElo "2373"]
[TimeControl "180+1"]
[EndTime "10:22:51 PST"]
[Termination "saraswathii won on time"]

1. e4 {[%clk 0:03:00.2]} 1... c5 {[%clk 0:02:57.9]} 2. Nf3 {[%clk 0:02:59.3]}
2... e6 {[%clk 0:02:55.8]} 3. c3 {[%clk 0:02:58.6]} 3... Nf6 {[%clk 0:02:54.2]}
4. d3 {[%clk 0:02:58]} 4... d5 {[%clk 0:02:52.2]} 5. e5 {[%clk 0:02:57.4]} 5...
Nfd7 {[%clk 0:02:51.1]} 6. d4 {[%clk 0:02:58]} 6... Nc6 {[%clk 0:02:50.7]} 7.
Be2 {[%clk 0:02:57.2]} 7... g6 {[%clk 0:02:46.4]} 8. O-O {[%clk 0:02:47]} 8...
Bg7 {[%clk 0:02:45.3]} 9. Na3 {[%clk 0:02:34.6]} 9... a6 {[%clk 0:02:42.3]} 10.
Bg5 {[%clk 0:02:30.3]} 10... Qb6 {[%clk 0:02:40.4]} 11. Rb1 {[%clk 0:02:28.2]}
11... O-O {[%clk 0:02:37.4]} 12. Nc2 {[%clk 0:02:24.2]} 12... f6 {[%clk
0:02:31]} 13. exf6 {[%clk 0:02:23.4]} 13... Nxf6 {[%clk 0:02:30.4]} 14. Re1
{[%clk 0:02:15.1]} 14... Ne4 {[%clk 0:02:28.6]} 15. Be3 {[%clk 0:02:13.7]} 15...
cxd4 {[%clk 0:02:23.8]} 16. Ncxd4 {[%clk 0:02:11.2]} 16... Qc7 {[%clk
0:02:17.8]} 17. Rc1 {[%clk 0:01:59.8]} 17... Bd7 {[%clk 0:02:11.4]} 18. c4
{[%clk 0:01:57.6]} 18... Nxd4 {[%clk 0:02:01.9]} 19. Bxd4 {[%clk 0:01:51.7]}
19... Bc6 {[%clk 0:01:31.1]} 20. Bxg7 {[%clk 0:01:43.3]} 20... Qxg7 {[%clk
0:01:32]} 21. cxd5 {[%clk 0:01:28.8]} 21... exd5 {[%clk 0:01:25.6]} 22. Qb3
{[%clk 0:01:23.7]} 22... Kh8 {[%clk 0:01:12.4]} 23. Bf1 {[%clk 0:01:06.3]} 23...
g5 {[%clk 0:01:06.4]} 24. h3 {[%clk 0:00:56.1]} 24... h5 {[%clk 0:01:03.7]} 25.
Rc2 {[%clk 0:00:37.6]} 25... g4 {[%clk 0:00:58.2]} 26. hxg4 {[%clk 0:00:38.5]}
26... hxg4 {[%clk 0:00:58.3]} 27. Nh4 {[%clk 0:00:38.1]} 27... g3 {[%clk
0:00:42.9]} 28. fxg3 {[%clk 0:00:36.8]} 28... Nxg3 {[%clk 0:00:37.1]} 29. Rc3
{[%clk 0:00:17.4]} 29... Qd4+ {[%clk 0:00:34.5]} 30. Rce3 {[%clk 0:00:13.3]}
30... Nxf1 {[%clk 0:00:31.2]} 31. Ng6+ {[%clk 0:00:08.4]} 31... Kg8 {[%clk
0:00:24.7]} 32. Rxf1 {[%clk 0:00:04.5]} 32... Rxf1+ {[%clk 0:00:22.5]} 33. Kxf1
{[%clk 0:00:05.4]} 33... Qf6+ {[%clk 0:00:13.8]} 34. Rf3 {[%clk 0:00:03.4]}
34... Bb5+ {[%clk 0:00:13.1]} 35. Kg1 {[%clk 0:00:02.8]} 35... Qb6+ {[%clk
0:00:11]} 36. Kh2 {[%clk 0:00:01.7]} 36... Qd6+ {[%clk 0:00:09.7]} 37. Rg3
{[%clk 0:00:02]} 37... Bc4 {[%clk 0:00:08.4]} 38. Nh4+ {[%clk 0:00:01.4]} 38...
Kf8 {[%clk 0:00:07.5]} 39. Qf3+ {[%clk 0:00:02.3]} 39... Ke8 {[%clk 0:00:07.2]}
40. Nf5 {[%clk 0:00:02.6]} 40... Qf6 {[%clk 0:00:05.8]} 41. Ng7+ {[%clk
0:00:02.4]} 41... Kf7 {[%clk 0:00:06]} 42. Nf5 {[%clk 0:00:02]} 42... Rh8+
{[%clk 0:00:03.7]} 43. Kg1 {[%clk 0:00:02.1]} 43... Qb6+ {[%clk 0:00:03.7]} 44.
Qf2 {[%clk 0:00:01.6]} 44... Qc5 {[%clk 0:00:02.1]} 0-1

[Event "*** Titled Tuesday Blitz"]
[Site "Chess.com"]
[Date "2020.11.24"]
[Round "1"]
[White "sboshaon21"]
[Black "esskeettit"]
[Result "0-1"]
[WhiteElo "2099"]
[BlackElo "2502"]
[TimeControl "180+1"]
[EndTime "10:22:51 PST"]
[Termination "esskeettit won on time"]

1. d4 {[%clk 0:02:59.4]} 1... d5 {[%clk 0:02:57.8]} 2. c4 {[%clk 0:02:57.9]}
2... e6 {[%clk 0:02:57.5]} 3. Nc3 {[%clk 0:02:57.8]} 3... Be7 {[%clk 0:02:55.3]}
4. Nf3 {[%clk 0:02:57.8]} 4... Nf6 {[%clk 0:02:54.9]} 5. e3 {[%clk 0:02:55.6]}
5... O-O {[%clk 0:02:51.6]} 6. Bd3 {[%clk 0:02:54.8]} 6... b6 {[%clk 0:02:51.4]}
7. O-O {[%clk 0:02:53.8]} 7... Bb7 {[%clk 0:02:50.7]} 8. b3 {[%clk 0:02:47.5]}
8... c5 {[%clk 0:02:50.4]} 9. Bb2 {[%clk 0:02:46.7]} 9... Nc6 {[%clk 0:02:50.5]}
10. Rc1 {[%clk 0:02:42.3]} 10... Rc8 {[%clk 0:02:50]} 11. Qe2 {[%clk 0:02:35.1]}
11... cxd4 {[%clk 0:02:36.2]} 12. exd4 {[%clk 0:02:23.6]} 12... Nb4 {[%clk
0:02:32.6]} 13. Bb1 {[%clk 0:02:19.1]} 13... dxc4 {[%clk 0:02:27.2]} 14. bxc4
{[%clk 0:02:14.7]} 14... Bxf3 {[%clk 0:02:26.9]} 15. Qxf3 {[%clk 0:02:10.7]}
15... Rxc4 {[%clk 0:02:11.4]} 16. Ne4 {[%clk 0:01:58]} 16... Rxc1 {[%clk
0:02:09.1]} 17. Rxc1 {[%clk 0:01:54.1]} 17... Nbd5 {[%clk 0:02:06.2]} 18. h3
{[%clk 0:01:37]} 18... Qd7 {[%clk 0:02:03.6]} 19. Qd3 {[%clk 0:01:28.2]} 19...
Rc8 {[%clk 0:01:55]} 20. Rxc8+ {[%clk 0:01:25.2]} 20... Qxc8 {[%clk 0:01:55.9]}
21. Nxf6+ {[%clk 0:01:16.3]} 21... Nxf6 {[%clk 0:01:56.8]} 22. d5 {[%clk
0:01:11.6]} 22... exd5 {[%clk 0:01:13.3]} 23. Bxf6 {[%clk 0:01:06.6]} 23... Qc1+
{[%clk 0:01:13.1]} 24. Kh2 {[%clk 0:01:04.9]} 24... Bxf6 {[%clk 0:00:56.1]} 25.
Qxh7+ {[%clk 0:00:49.6]} 25... Kf8 {[%clk 0:00:55.8]} 26. Qf5 {[%clk 0:00:48]}
26... d4 {[%clk 0:00:46.4]} 27. Bd3 {[%clk 0:00:43.4]} 27... Qc7+ {[%clk
0:00:45.6]} 28. g3 {[%clk 0:00:41.7]} 28... Qd8 {[%clk 0:00:32.5]} 29. a4 {[%clk
0:00:39.7]} 29... Qe8 {[%clk 0:00:28.7]} 30. Bb5 {[%clk 0:00:35.2]} 30... Qd8
{[%clk 0:00:26.7]} 31. Kg2 {[%clk 0:00:32.2]} 31... g6 {[%clk 0:00:25.3]} 32.
Qe4 {[%clk 0:00:29.3]} 32... Kg7 {[%clk 0:00:24.2]} 33. h4 {[%clk 0:00:28]}
33... Qd6 {[%clk 0:00:17.6]} 34. Bd3 {[%clk 0:00:19.7]} 34... Qe5 {[%clk
0:00:16.3]} 35. Qxe5 {[%clk 0:00:17]} 35... Bxe5 {[%clk 0:00:17.2]} 36. f4
{[%clk 0:00:17]} 36... Bd6 {[%clk 0:00:16.8]} 37. Kf3 {[%clk 0:00:17]} 37... Kf6
{[%clk 0:00:17]} 38. Ke4 {[%clk 0:00:15.9]} 38... Bc5 {[%clk 0:00:16.6]} 39. g4
{[%clk 0:00:15]} 39... Ke6 {[%clk 0:00:16]} 40. f5+ {[%clk 0:00:06.1]} 40...
gxf5+ {[%clk 0:00:15.3]} 41. gxf5+ {[%clk 0:00:07]} 41... Kf6 {[%clk 0:00:16.2]}
42. Kf4 {[%clk 0:00:04.4]} 42... a5 {[%clk 0:00:12.9]} 43. Kg4 {[%clk
0:00:02.9]} 43... Bd6 {[%clk 0:00:12]} 44. h5 {[%clk 0:00:02.3]} 44... Be5
{[%clk 0:00:10.6]} 45. h6 {[%clk 0:00:01.7]} 45... Bd6 {[%clk 0:00:06.8]} 0-1

[Event "*** Titled Tuesday Blitz"]
[Site "Chess.com"]
[Date "2020.11.24"]
[Round "1"]
[White "Rodalquilar"]
[Black "Vi_Los"]
[Result "1/2-1/2"]
[WhiteElo "2657"]
[BlackElo "2355"]
[TimeControl "180+1"]
[EndTime "10:22:52 PST"]
[Termination "Game drawn by repetition"]

1. d4 {[%clk 0:03:00.6]} 1... Nf6 {[%clk 0:02:59.5]} 2. Bf4 {[%clk 0:03:00.7]}
2... d5 {[%clk 0:02:59.4]} 3. e3 {[%clk 0:03:01.1]} 3... c5 {[%clk 0:02:59.6]}
4. Nf3 {[%clk 0:03:01.5]} 4... Nc6 {[%clk 0:02:59.9]} 5. c3 {[%clk 0:03:02.1]}
5... Qb6 {[%clk 0:03:00.2]} 6. Qc2 {[%clk 0:03:02.2]} 6... Bg4 {[%clk
0:02:50.1]} 7. Nbd2 {[%clk 0:02:59.5]} 7... e6 {[%clk 0:02:47.1]} 8. h3 {[%clk
0:02:56]} 8... Bh5 {[%clk 0:02:42]} 9. Be2 {[%clk 0:02:49.8]} 9... Bg6 {[%clk
0:02:40.8]} 10. dxc5 {[%clk 0:02:49.3]} 10... Bxc5 {[%clk 0:02:36.9]} 11. Qb3
{[%clk 0:02:49.8]} 11... O-O {[%clk 0:02:35.2]} 12. O-O {[%clk 0:02:49.7]} 12...
Ne4 {[%clk 0:02:29.3]} 13. Rfd1 {[%clk 0:02:34.2]} 13... h6 {[%clk 0:02:20.1]}
14. c4 {[%clk 0:01:51.4]} 14... Nxd2 {[%clk 0:01:46.8]} 15. Rxd2 {[%clk
0:01:06.4]} 15... Be4 {[%clk 0:01:26.9]} 16. Qxb6 {[%clk 0:00:57]} 16... Bxb6
{[%clk 0:01:22.7]} 17. a3 {[%clk 0:00:57.4]} 17... dxc4 {[%clk 0:01:20.4]} 18.
Bxc4 {[%clk 0:00:56.2]} 18... Rfd8 {[%clk 0:01:19.4]} 19. Rad1 {[%clk
0:00:54.1]} 19... Rxd2 {[%clk 0:01:14.2]} 20. Rxd2 {[%clk 0:00:55]} 20... Rd8
{[%clk 0:01:04.6]} 21. Rxd8+ {[%clk 0:00:55]} 21... Bxd8 {[%clk 0:01:01.8]} 22.
Nd2 {[%clk 0:00:55.9]} 22... Bg6 {[%clk 0:00:53.6]} 23. Kf1 {[%clk 0:00:55.3]}
23... Kf8 {[%clk 0:00:53.4]} 24. Ke2 {[%clk 0:00:55.3]} 24... e5 {[%clk
0:00:53.3]} 25. Bg3 {[%clk 0:00:54.3]} 25... f6 {[%clk 0:00:51.1]} 26. Bd5
{[%clk 0:00:54]} 26... Bf7 {[%clk 0:00:48.3]} 27. Bxc6 {[%clk 0:00:48]} 27...
bxc6 {[%clk 0:00:47.7]} 28. Kd3 {[%clk 0:00:48.5]} 28... Ke7 {[%clk 0:00:47.1]}
29. Nc4 {[%clk 0:00:38.3]} 29... Bb6 {[%clk 0:00:42.5]} 30. b4 {[%clk
0:00:34.4]} 30... Bc7 {[%clk 0:00:29.1]} 31. f4 {[%clk 0:00:24.8]} 31... e4+
{[%clk 0:00:25.6]} 32. Kd4 {[%clk 0:00:16.2]} 32... f5 {[%clk 0:00:25]} 33. Bh4+
{[%clk 0:00:13]} 33... Ke6 {[%clk 0:00:24.3]} 34. g4 {[%clk 0:00:08.2]} 34... g6
{[%clk 0:00:24]} 35. Be1 {[%clk 0:00:04.3]} 35... Ke7 {[%clk 0:00:22.6]} 36.
Bh4+ {[%clk 0:00:02.9]} 36... Ke6 {[%clk 0:00:22.5]} 37. Bf2 {[%clk 0:00:03.8]}
37... Ke7 {[%clk 0:00:21.7]} 38. Kc3 {[%clk 0:00:03.9]} 38... Be6 {[%clk
0:00:21.4]} 39. Bh4+ {[%clk 0:00:02.2]} 39... Kd7 {[%clk 0:00:21.3]} 40. g5
{[%clk 0:00:03.1]} 40... h5 {[%clk 0:00:18.8]} 41. a4 {[%clk 0:00:03.1]} 41...
Bxc4 {[%clk 0:00:18.1]} 42. Kxc4 {[%clk 0:00:03.2]} 42... Kd6 {[%clk 0:00:18.5]}
43. Bf2 {[%clk 0:00:04.1]} 43... Bb6 {[%clk 0:00:18.5]} 44. a5 {[%clk
0:00:04.5]} 44... Bd8 {[%clk 0:00:18.5]} 45. Be1 {[%clk 0:00:05]} 45... Be7
{[%clk 0:00:18.3]} 46. Bc3 {[%clk 0:00:05.6]} 46... Kd7 {[%clk 0:00:18.5]} 47.
Bd4 {[%clk 0:00:05.9]} 47... a6 {[%clk 0:00:17.8]} 48. Bc5 {[%clk 0:00:06.5]}
48... Bd8 {[%clk 0:00:17.7]} 49. Bb6 {[%clk 0:00:07.1]} 49... Be7 {[%clk
0:00:18.1]} 50. Bc5 {[%clk 0:00:07.6]} 50... Bd8 {[%clk 0:00:18.4]} 51. Kd4
{[%clk 0:00:07.9]} 51... Ke6 {[%clk 0:00:18.3]} 52. Bb6 {[%clk 0:00:07.8]} 52...
Be7 {[%clk 0:00:18.7]} 53. Bc5 {[%clk 0:00:08.3]} 53... Bd8 {[%clk 0:00:19.2]}
54. Kc4 {[%clk 0:00:08.7]} 54... Kd7 {[%clk 0:00:19.2]} 1/2-1/2

[Event "*** Titled Tuesday Blitz"]
[Site "Chess.com"]
[Date "2020.11.24"]
[Round "1"]
[White "rasmussvane"]
[Black "GM_LOADING"]
[Result "1/2-1/2"]
[WhiteElo "2892"]
[BlackElo "2450"]
[TimeControl "180+1"]
[EndTime "10:22:53 PST"]
[Termination "Game drawn by repetition"]

1. Nf3 {[%clk 0:03:00.9]} 1... Nf6 {[%clk 0:02:57.7]} 2. g3 {[%clk 0:03:00.5]}
2... d5 {[%clk 0:02:57.6]} 3. Bg2 {[%clk 0:03:00.7]} 3... c6 {[%clk 0:02:58.1]}
4. O-O {[%clk 0:03:00.9]} 4... Bg4 {[%clk 0:02:58.7]} 5. h3 {[%clk 0:03:00.9]}
5... Bxf3 {[%clk 0:02:58.4]} 6. Bxf3 {[%clk 0:03:01.8]} 6... Nbd7 {[%clk
0:02:58.7]} 7. d3 {[%clk 0:03:02.3]} 7... e6 {[%clk 0:02:55.5]} 8. e4 {[%clk
0:03:02]} 8... dxe4 {[%clk 0:02:50.6]} 9. dxe4 {[%clk 0:03:01.7]} 9... Bc5
{[%clk 0:02:51.2]} 10. Nd2 {[%clk 0:02:59.8]} 10... O-O {[%clk 0:02:43]} 11. Qe2
{[%clk 0:02:53.2]} 11... Qc7 {[%clk 0:02:33]} 12. Kh1 {[%clk 0:02:52.6]} 12...
Rad8 {[%clk 0:02:31.3]} 13. Bg2 {[%clk 0:02:48.5]} 13... e5 {[%clk 0:02:29.8]}
14. Nb3 {[%clk 0:02:42.5]} 14... Bb6 {[%clk 0:02:27.8]} 15. a4 {[%clk
0:02:42.3]} 15... a6 {[%clk 0:02:26.9]} 16. Rd1 {[%clk 0:02:36.8]} 16... h6
{[%clk 0:02:22.1]} 17. Bd2 {[%clk 0:02:34.7]} 17... Nc5 {[%clk 0:02:11.3]} 18.
Nxc5 {[%clk 0:02:30.4]} 18... Bxc5 {[%clk 0:02:12.2]} 19. Be1 {[%clk 0:02:28.8]}
19... Rxd1 {[%clk 0:02:06.3]} 20. Rxd1 {[%clk 0:02:29.7]} 20... Rd8 {[%clk
0:02:06.4]} 21. Bf3 {[%clk 0:02:28.6]} 21... Rxd1 {[%clk 0:01:55.3]} 22. Qxd1
{[%clk 0:02:29.5]} 22... Qb6 {[%clk 0:01:55.8]} 23. Bc3 {[%clk 0:02:13.5]} 23...
Bd4 {[%clk 0:01:03]} 24. Bxd4 {[%clk 0:02:12.8]} 24... exd4 {[%clk 0:01:03.9]}
25. b3 {[%clk 0:02:08.7]} 25... Nd7 {[%clk 0:01:02.5]} 26. Be2 {[%clk
0:02:06.7]} 26... Qb4 {[%clk 0:00:59.3]} 27. f4 {[%clk 0:01:55.2]} 27... Qc3
{[%clk 0:00:59.3]} 28. Bd3 {[%clk 0:01:53.1]} 28... Nc5 {[%clk 0:00:58.5]} 29.
Kg2 {[%clk 0:01:51.3]} 29... a5 {[%clk 0:00:29.5]} 30. h4 {[%clk 0:01:48.1]}
30... b6 {[%clk 0:00:26.9]} 31. Kh3 {[%clk 0:01:40.2]} 31... Nxd3 {[%clk
0:00:24.1]} 32. cxd3 {[%clk 0:01:20.8]} 32... b5 {[%clk 0:00:23.4]} 33. e5
{[%clk 0:01:19.3]} 33... bxa4 {[%clk 0:00:20.1]} 34. bxa4 {[%clk 0:01:20.2]}
34... c5 {[%clk 0:00:18.7]} 35. Qf3 {[%clk 0:01:06.4]} 35... Qb3 {[%clk
0:00:16.8]} 36. Qa8+ {[%clk 0:01:05.2]} 36... Kh7 {[%clk 0:00:16.8]} 37. Qe4+
{[%clk 0:01:05.8]} 37... Kg8 {[%clk 0:00:17.3]} 38. f5 {[%clk 0:01:05.2]} 38...
Qxa4 {[%clk 0:00:15.7]} 39. e6 {[%clk 0:01:00.2]} 39... Qe8 {[%clk 0:00:14.9]}
40. e7 {[%clk 0:00:55.3]} 40... a4 {[%clk 0:00:14.8]} 41. Qe5 {[%clk 0:00:48.6]}
41... a3 {[%clk 0:00:14.6]} 42. Qd6 {[%clk 0:00:47.1]} 42... f6 {[%clk 0:00:15]}
43. Qd5+ {[%clk 0:00:46.9]} 43... Kh7 {[%clk 0:00:13.7]} 44. Qd8 {[%clk
0:00:41.9]} 44... Qc6 {[%clk 0:00:12]} 45. e8=Q {[%clk 0:00:09]} 45... Qh1+
{[%clk 0:00:11.4]} 46. Kg4 {[%clk 0:00:09.4]} 46... Qd1+ {[%clk 0:00:11.4]} 47.
Kh3 {[%clk 0:00:07.8]} 47... Qh1+ {[%clk 0:00:11.4]} 48. Kg4 {[%clk 0:00:08.1]}
48... Qd1+ {[%clk 0:00:11.5]} 49. Kf4 {[%clk 0:00:08.8]} 49... Qf1+ {[%clk
0:00:11.7]} 50. Ke4 {[%clk 0:00:09.5]} 50... Qg2+ {[%clk 0:00:11.9]} 51. Kf4
{[%clk 0:00:09.1]} 51... Qf1+ {[%clk 0:00:12.2]} 52. Kg4 {[%clk 0:00:07.2]}
52... Qd1+ {[%clk 0:00:12.3]} 1/2-1/2

[Event "*** Titled Tuesday Blitz"]
[Site "Chess.com"]
[Date "2020.11.24"]
[Round "1"]
[White "Rhinos1"]
[Black "Vladislav_Chizhikov"]
[Result "1-0"]
[WhiteElo "2229"]
[BlackElo "2512"]
[TimeControl "180+1"]
[EndTime "10:22:53 PST"]
[Termination "Rhinos1 won by checkmate"]

1. e4 {[%clk 0:02:59.1]} 1... e6 {[%clk 0:02:59.6]} 2. d3 {[%clk 0:02:58.6]}
2... d5 {[%clk 0:02:59.3]} 3. Nd2 {[%clk 0:02:58.2]} 3... Nf6 {[%clk 0:02:59.2]}
4. Ngf3 {[%clk 0:02:52.5]} 4... c5 {[%clk 0:02:57.9]} 5. Be2 {[%clk 0:02:50.8]}
5... Nc6 {[%clk 0:02:57.1]} 6. O-O {[%clk 0:02:47.9]} 6... g6 {[%clk 0:02:57.6]}
7. c3 {[%clk 0:02:47.4]} 7... Bg7 {[%clk 0:02:58]} 8. Qc2 {[%clk 0:02:46.4]}
8... O-O {[%clk 0:02:58.1]} 9. Re1 {[%clk 0:02:41.4]} 9... b6 {[%clk 0:02:54.4]}
10. Nf1 {[%clk 0:02:32]} 10... a5 {[%clk 0:02:54.7]} 11. Bg5 {[%clk 0:02:20.1]}
11... Qc7 {[%clk 0:02:48.7]} 12. Rad1 {[%clk 0:02:09.1]} 12... a4 {[%clk
0:02:47.5]} 13. Ne3 {[%clk 0:01:52]} 13... dxe4 {[%clk 0:02:26.2]} 14. dxe4
{[%clk 0:01:48.9]} 14... Bb7 {[%clk 0:02:24]} 15. Nc4 {[%clk 0:01:30.3]} 15...
h6 {[%clk 0:01:59.7]} 16. Bh4 {[%clk 0:01:27.5]} 16... e5 {[%clk 0:01:52.7]} 17.
Nd6 {[%clk 0:01:03.8]} 17... Ba6 {[%clk 0:01:48.1]} 18. Bxa6 {[%clk 0:00:58.3]}
18... Rxa6 {[%clk 0:01:49]} 19. Nb5 {[%clk 0:00:58.9]} 19... Qe7 {[%clk
0:01:43.8]} 20. Rd6 {[%clk 0:00:57.7]} 20... Na7 {[%clk 0:01:39.9]} 21. Bxf6
{[%clk 0:00:35.2]} 21... Bxf6 {[%clk 0:01:38]} 22. Rxf6 {[%clk 0:00:35.5]} 22...
Qxf6 {[%clk 0:01:35.8]} 23. Nc7 {[%clk 0:00:35.8]} 23... Ra5 {[%clk 0:01:35.4]}
24. b4 {[%clk 0:00:35.7]} 24... axb3 {[%clk 0:01:31.4]} 25. axb3 {[%clk
0:00:36.6]} 25... Nc6 {[%clk 0:01:24.3]} 26. Nd5 {[%clk 0:00:36.5]} 26... Qd8
{[%clk 0:01:23.6]} 27. Rd1 {[%clk 0:00:32.8]} 27... Kg7 {[%clk 0:01:22.4]} 28.
b4 {[%clk 0:00:26.3]} 28... Ra8 {[%clk 0:01:19.2]} 29. b5 {[%clk 0:00:23.9]}
29... Na5 {[%clk 0:01:13.9]} 30. Nxe5 {[%clk 0:00:23.9]} 30... Qd6 {[%clk
0:01:04.9]} 31. f4 {[%clk 0:00:22.1]} 31... Rad8 {[%clk 0:01:02]} 32. c4 {[%clk
0:00:22.1]} 32... g5 {[%clk 0:00:57.4]} 33. Qc3 {[%clk 0:00:21.6]} 33... Kg8
{[%clk 0:00:54.9]} 34. Ng4 {[%clk 0:00:21.1]} 34... Qg6 {[%clk 0:00:38.1]} 35.
f5 {[%clk 0:00:18.8]} 35... Qg7 {[%clk 0:00:33.4]} 36. f6 {[%clk 0:00:18.8]}
36... Qh7 {[%clk 0:00:32.1]} 37. Ne7+ {[%clk 0:00:18.1]} 37... Kh8 {[%clk
0:00:32.4]} 38. Re1 {[%clk 0:00:15.1]} 38... Rd4 {[%clk 0:00:29.8]} 39. h3
{[%clk 0:00:10.4]} 39... Rxe4 {[%clk 0:00:28.2]} 40. Rd1 {[%clk 0:00:08]} 40...
Rxc4 {[%clk 0:00:27.4]} 41. Qe5 {[%clk 0:00:07]} 41... Re4 {[%clk 0:00:26.4]}
42. Qc7 {[%clk 0:00:06.4]} 42... Re8 {[%clk 0:00:11.4]} 43. Qxb6 {[%clk
0:00:06.1]} 43... Nb3 {[%clk 0:00:09.6]} 44. Qc6 {[%clk 0:00:05.9]} 44... R4xe7
{[%clk 0:00:08.1]} 45. fxe7 {[%clk 0:00:06.8]} 45... Rxe7 {[%clk 0:00:08.4]} 46.
Rd8+ {[%clk 0:00:06.5]} 46... Kg7 {[%clk 0:00:06.7]} 47. Qf6# {[%clk 0:00:06.9]}
1-0

[Event "*** Titled Tuesday Blitz"]
[Site "Chess.com"]
[Date "2020.11.24"]
[Round "1"]
[White "CoachHakia"]
[Black "chenxiaoyuer"]
[Result "0-1"]
[WhiteElo "2159"]
[BlackElo "2519"]
[TimeControl "180+1"]
[EndTime "10:22:54 PST"]
[Termination "chenxiaoyuer won by checkmate"]

1. d4 {[%clk 0:02:59.7]} 1... Nf6 {[%clk 0:02:59.1]} 2. Bg5 {[%clk 0:02:58.5]}
2... d5 {[%clk 0:02:57.9]} 3. Bxf6 {[%clk 0:02:57.9]} 3... exf6 {[%clk
0:02:58.1]} 4. g3 {[%clk 0:02:57.8]} 4... Bd6 {[%clk 0:02:57.5]} 5. Bg2 {[%clk
0:02:57.7]} 5... c6 {[%clk 0:02:57.8]} 6. e3 {[%clk 0:02:55.9]} 6... O-O {[%clk
0:02:58]} 7. Ne2 {[%clk 0:02:55.7]} 7... Re8 {[%clk 0:02:53.8]} 8. O-O {[%clk
0:02:55.4]} 8... Nd7 {[%clk 0:02:54]} 9. Nd2 {[%clk 0:02:55.9]} 9... f5 {[%clk
0:02:52.2]} 10. c4 {[%clk 0:02:52]} 10... dxc4 {[%clk 0:02:50.9]} 11. Nxc4
{[%clk 0:02:51.8]} 11... Nf6 {[%clk 0:02:41.9]} 12. Nxd6 {[%clk 0:02:31.3]}
12... Qxd6 {[%clk 0:02:42.8]} 13. Nc3 {[%clk 0:02:18.2]} 13... Be6 {[%clk
0:02:37.8]} 14. Qc2 {[%clk 0:02:06.4]} 14... Nd5 {[%clk 0:02:34.2]} 15. Nxd5
{[%clk 0:01:48.8]} 15... cxd5 {[%clk 0:02:31.1]} 16. Rfc1 {[%clk 0:01:44.9]}
16... Rec8 {[%clk 0:02:22.8]} 17. Qb3 {[%clk 0:01:43.6]} 17... b6 {[%clk
0:02:20.3]} 18. h3 {[%clk 0:01:33.1]} 18... h5 {[%clk 0:02:14.8]} 19. h4 {[%clk
0:01:27.8]} 19... g6 {[%clk 0:02:07.6]} 20. a4 {[%clk 0:01:27.8]} 20... a5
{[%clk 0:02:03.2]} 21. Qb5 {[%clk 0:01:19.6]} 21... Rab8 {[%clk 0:01:50.2]} 22.
Rc3 {[%clk 0:01:02]} 22... Rxc3 {[%clk 0:01:41.9]} 23. bxc3 {[%clk 0:01:02.9]}
23... Rc8 {[%clk 0:01:38.7]} 24. Rb1 {[%clk 0:00:55.3]} 24... Rc6 {[%clk
0:01:00.6]} 25. Rb3 {[%clk 0:00:43.5]} 25... Kh7 {[%clk 0:00:59.3]} 26. Qa6
{[%clk 0:00:42.1]} 26... Qc7 {[%clk 0:00:49.7]} 27. Qb5 {[%clk 0:00:39]} 27...
Bd7 {[%clk 0:00:48.9]} 28. Qxd5 {[%clk 0:00:31.8]} 28... Rf6 {[%clk 0:00:46.1]}
29. Qe5 {[%clk 0:00:24.5]} 29... Qd8 {[%clk 0:00:43.2]} 30. c4 {[%clk
0:00:20.7]} 30... Bxa4 {[%clk 0:00:38.6]} 31. Rc3 {[%clk 0:00:21.2]} 31... Re6
{[%clk 0:00:34.7]} 32. Qf4 {[%clk 0:00:18.3]} 32... Qe7 {[%clk 0:00:27.9]} 33.
Bd5 {[%clk 0:00:18.2]} 33... Rf6 {[%clk 0:00:25.1]} 34. Qg5 {[%clk 0:00:17.8]}
34... Kg7 {[%clk 0:00:24.6]} 35. c5 {[%clk 0:00:15.6]} 35... b5 {[%clk
0:00:18.7]} 36. c6 {[%clk 0:00:12.8]} 36... Qc7 {[%clk 0:00:17.2]} 37. Rc5
{[%clk 0:00:11.2]} 37... b4 {[%clk 0:00:16.9]} 38. Qf4 {[%clk 0:00:10.1]} 38...
Qxf4 {[%clk 0:00:13.5]} 39. gxf4 {[%clk 0:00:09.5]} 39... b3 {[%clk 0:00:12.6]}
40. c7 {[%clk 0:00:09.8]} 40... b2 {[%clk 0:00:12.6]} 41. c8=Q {[%clk
0:00:10.2]} 41... b1=Q+ {[%clk 0:00:12.4]} 42. Kg2 {[%clk 0:00:10.5]} 42... Qd1
{[%clk 0:00:07.3]} 43. Bf3 {[%clk 0:00:09.2]} 43... Qe1 {[%clk 0:00:06.9]} 44.
Rc7 {[%clk 0:00:08.9]} 44... Bd1 {[%clk 0:00:06.5]} 45. Bd5 {[%clk 0:00:05.8]}
45... Be2 {[%clk 0:00:05.1]} 46. Qd7 {[%clk 0:00:04.9]} 46... Qf1+ {[%clk
0:00:05]} 47. Kg3 {[%clk 0:00:04.7]} 47... Qg1+ {[%clk 0:00:05.1]} 48. Kh3
{[%clk 0:00:05.2]} 48... Bf1+ {[%clk 0:00:04.9]} 49. Bg2 {[%clk 0:00:04.2]}
49... Qxg2# {[%clk 0:00:05.4]} 0-1